[Event "Titled Tuesday Blitz June 14 Early 2022"]
[White "Bharath Subramaniyam H"]
[Black "Andreikin, Dmitry"]
[WhiteFideId "46634827"]
[BlackFideId "4158814"]
[WhiteElo "2242"]
[BlackElo "2736"]
[Result "0-1"]
[Round "07"]
[TimeControl "180+1"]
[Date "2022.06.14"]
[WhiteClock "0:00:03"]
[BlackClock "0:01:07"]

1. c4 {[%clk 0:03:00]}  Nf6 {[%clk 0:02:59]} 2. Nc3 {[%clk 0:03:01]}  g6 {[%clk 0:02:58]} 3. d4 {[%clk 0:03:01]}  Bg7 {[%clk 0:02:58]} 4. e4 {[%clk 0:03:02]}  O-O {[%clk 0:02:58]} 5. h3 {[%clk 0:03:02]}  c6 {[%clk 0:02:58]} 6. Be3 {[%clk 0:03:00]}  a6 {[%clk 0:02:57]} 7. g4 {[%clk 0:02:56]}  b5 {[%clk 0:02:52]} 8. g5 {[%clk 0:02:56]}  Ne8 {[%clk 0:02:52]} 9. h4 {[%clk 0:02:42]}  bxc4 {[%clk 0:02:51]} 10. h5 {[%clk 0:02:40]}  d5 {[%clk 0:02:46]} 11. hxg6 {[%clk 0:02:18]}  fxg6 {[%clk 0:02:46]} 12. Bg2 {[%clk 0:01:56]}  Be6 {[%clk 0:02:43]} 13. Nh3 {[%clk 0:01:33]}  Nc7 {[%clk 0:02:27]} 14. Nf4 {[%clk 0:01:33]}  Qd7 {[%clk 0:02:23]} 15. Nxe6 {[%clk 0:01:27]}  Qxe6 {[%clk 0:02:22]} 16. Bh3 {[%clk 0:01:23]}  Qf7 {[%clk 0:02:19]} 17. Bg2 {[%clk 0:01:06]}  a5 {[%clk 0:02:08]} 18. Qg4 {[%clk 0:01:05]}  Nba6 {[%clk 0:02:08]} 19. Qh4 {[%clk 0:01:02]}  Bh8 {[%clk 0:02:06]} 20. exd5 {[%clk 0:01:00]}  Nb4 {[%clk 0:02:06]} 21. dxc6 {[%clk 0:00:58]}  Nc2+ {[%clk 0:02:01]} 22. Kd2 {[%clk 0:00:58]}  Nxa1 {[%clk 0:02:00]} 23. Nd5 {[%clk 0:00:51]}  e6 {[%clk 0:01:33]} 24. Nxc7 {[%clk 0:00:49]}  Qxc7 {[%clk 0:01:33]} 25. Rxa1 {[%clk 0:00:36]}  Rad8 {[%clk 0:01:34]} 26. Rh1 {[%clk 0:00:33]}  Bxd4 {[%clk 0:01:27]} 27. Kc2 {[%clk 0:00:17]}  Bxe3 {[%clk 0:01:22]} 28. fxe3 {[%clk 0:00:18]}  Rf7 {[%clk 0:01:22]} 29. Qxc4 {[%clk 0:00:15]}  Rf2+ {[%clk 0:01:14]} 30. Kb1 {[%clk 0:00:15]}  Qe5 {[%clk 0:01:14]} 31. Qb3 {[%clk 0:00:06]}  Rdd2 {[%clk 0:01:13]} 32. Kc1 {[%clk 0:00:03]}  Rxb2 {[%clk 0:01:11]} 33. Qd3 {[%clk 0:00:03]}  Rb1+ {[%clk 0:01:08]} 34. Qxb1 {[%clk 0:00:03]}  Qxe3+ {[%clk 0:01:07]} 35. Kd1 {[%clk 0:00:03]}  Qd2# {[%clk 0:01:07]} 0-1


[Site "https://www.chess.com"]

[Event "Titled Tuesday Blitz June 14 Early 2022"]
[White "Bluebaum, Matthias"]
[Black "Fedoseev, Vladimir"]
[WhiteFideId "24651516"]
[BlackFideId "24130737"]
[WhiteElo "2556"]
[BlackElo "2726"]
[Result "0-1"]
[Round "07"]
[TimeControl "180+1"]
[Date "2022.06.14"]
[WhiteClock "0:00:14"]
[BlackClock "0:00:50"]

1. d4 {[%clk 0:03:00]}  Nf6 {[%clk 0:02:59]} 2. c4 {[%clk 0:03:01]}  e6 {[%clk 0:03:00]} 3. Nc3 {[%clk 0:03:02]}  Bb4 {[%clk 0:02:59]} 4. e3 {[%clk 0:03:02]}  O-O {[%clk 0:02:58]} 5. Bd2 {[%clk 0:03:03]}  d6 {[%clk 0:02:58]} 6. Bd3 {[%clk 0:03:01]}  c5 {[%clk 0:02:57]} 7. dxc5 {[%clk 0:02:59]}  Bxc5 {[%clk 0:02:55]} 8. Nf3 {[%clk 0:02:55]}  Nbd7 {[%clk 0:02:49]} 9. a3 {[%clk 0:02:54]}  a6 {[%clk 0:02:47]} 10. b4 {[%clk 0:02:53]}  Ba7 {[%clk 0:02:47]} 11. O-O {[%clk 0:02:53]}  Qe7 {[%clk 0:02:46]} 12. Bc1 {[%clk 0:02:46]}  Rd8 {[%clk 0:02:44]} 13. Bb2 {[%clk 0:02:46]}  Nf8 {[%clk 0:02:44]} 14. Qe2 {[%clk 0:02:46]}  Bd7 {[%clk 0:02:41]} 15. Rac1 {[%clk 0:02:45]}  Rac8 {[%clk 0:02:40]} 16. Rfd1 {[%clk 0:02:44]}  Ng6 {[%clk 0:02:38]} 17. h3 {[%clk 0:02:34]}  Bc6 {[%clk 0:02:30]} 18. Bb1 {[%clk 0:02:16]}  Bxf3 {[%clk 0:02:27]} 19. Qxf3 {[%clk 0:01:54]}  Ne5 {[%clk 0:02:20]} 20. Qg3 {[%clk 0:01:31]}  Nxc4 {[%clk 0:02:19]} 21. Ba1 {[%clk 0:01:31]}  d5 {[%clk 0:02:19]} 22. Qh4 {[%clk 0:01:21]}  Nxe3 {[%clk 0:02:08]} 23. Re1 {[%clk 0:01:05]}  Rc4 {[%clk 0:01:51]} 24. Nxd5 {[%clk 0:00:46]}  Rxd5 {[%clk 0:01:31]} 25. Bxh7+ {[%clk 0:00:25]}  Kf8 {[%clk 0:01:29]} 26. Be4 {[%clk 0:00:15]}  Rh5 {[%clk 0:01:19]} 27. Bxf6 {[%clk 0:00:08]}  Rxh4 {[%clk 0:01:17]} 28. Bxe7+ {[%clk 0:00:09]}  Kxe7 {[%clk 0:01:17]} 29. Bxb7 {[%clk 0:00:10]}  Rxc1 {[%clk 0:01:09]} 30. Rxc1 {[%clk 0:00:11]}  Rc4 {[%clk 0:01:09]} 31. Re1 {[%clk 0:00:03]}  Nc2 {[%clk 0:01:07]} 32. Re2 {[%clk 0:00:03]}  Nxa3 {[%clk 0:01:05]} 33. Bxa6 {[%clk 0:00:03]}  Rxb4 {[%clk 0:01:04]} 34. Bd3 {[%clk 0:00:04]}  Bc5 {[%clk 0:01:03]} 35. g3 {[%clk 0:00:04]}  Rb3 {[%clk 0:01:03]} 36. Rd2 {[%clk 0:00:03]}  Nb1 {[%clk 0:01:02]} 37. Rd1 {[%clk 0:00:03]}  Nc3 {[%clk 0:01:01]} 38. Rc1 {[%clk 0:00:04]}  Nd5 {[%clk 0:00:58]} 39. Bc4 {[%clk 0:00:03]}  Rxg3+ {[%clk 0:00:57]} 40. Kf1 {[%clk 0:00:04]}  Rc3 {[%clk 0:00:57]} 41. Rxc3 {[%clk 0:00:01]}  Nxc3 {[%clk 0:00:58]} 42. Kg2 {[%clk 0:00:02]}  Ne4 {[%clk 0:00:56]} 43. f3 {[%clk 0:00:03]}  Nd6 {[%clk 0:00:55]} 44. Bd3 {[%clk 0:00:03]}  Be3 {[%clk 0:00:54]} 45. h4 {[%clk 0:00:04]}  e5 {[%clk 0:00:54]} 46. Kh3 {[%clk 0:00:05]}  f5 {[%clk 0:00:53]} 47. Bf1 {[%clk 0:00:06]}  Kf6 {[%clk 0:00:53]} 48. Kg2 {[%clk 0:00:07]}  g6 {[%clk 0:00:50]} 49. Ba6 {[%clk 0:00:08]}  Nf7 {[%clk 0:00:49]} 50. Be2 {[%clk 0:00:09]}  Nd8 {[%clk 0:00:50]} 51. Bd1 {[%clk 0:00:10]}  Ne6 {[%clk 0:00:50]} 52. Bc2 {[%clk 0:00:11]}  Nf4+ {[%clk 0:00:50]} 53. Kf1 {[%clk 0:00:12]}  Bd4 {[%clk 0:00:50]} 54. Ba4 {[%clk 0:00:12]}  Kg7 {[%clk 0:00:50]} 55. Bd1 {[%clk 0:00:13]}  Kh6 {[%clk 0:00:50]} 56. Ba4 {[%clk 0:00:13]}  Kh5 {[%clk 0:00:51]} 57. Be8 {[%clk 0:00:14]}  Kxh4 {[%clk 0:00:51]} 58. Bxg6 {[%clk 0:00:13]}  Nxg6 {[%clk 0:00:50]} 59. f4 {[%clk 0:00:14]}  Nxf4 {[%clk 0:00:50]} 0-1


[Site "https://www.chess.com"]

[Event "Titled Tuesday Blitz June 14 Early 2022"]
[White "Bortnyk, Mykola"]
[Black "Hesham, Abdelrahman"]
[WhiteFideId "14120836"]
[BlackFideId "10600183"]
[WhiteElo "2582"]
[BlackElo "2506"]
[Result "1-0"]
[Round "07"]
[TimeControl "180+1"]
[Date "2022.06.14"]
[WhiteClock "0:00:25"]
[BlackClock "0:00:02"]

1. e4 {[%clk 0:02:58]}  c6 {[%clk 0:02:58]} 2. d4 {[%clk 0:02:58]}  d5 {[%clk 0:02:58]} 3. Nc3 {[%clk 0:02:58]}  dxe4 {[%clk 0:02:58]} 4. Nxe4 {[%clk 0:02:59]}  Bf5 {[%clk 0:02:54]} 5. Ng3 {[%clk 0:02:59]}  Bg6 {[%clk 0:02:54]} 6. h4 {[%clk 0:02:54]}  h6 {[%clk 0:02:53]} 7. N1e2 {[%clk 0:02:54]}  Nf6 {[%clk 0:02:50]} 8. Nf4 {[%clk 0:02:54]}  Bh7 {[%clk 0:02:50]} 9. Bc4 {[%clk 0:02:47]}  e6 {[%clk 0:02:40]} 10. Nfh5 {[%clk 0:02:47]}  Nbd7 {[%clk 0:02:38]} 11. Bf4 {[%clk 0:02:43]}  Nd5 {[%clk 0:02:30]} 12. Bd2 {[%clk 0:02:30]}  N7f6 {[%clk 0:02:21]} 13. Bb3 {[%clk 0:02:25]}  Nxh5 {[%clk 0:02:05]} 14. Nxh5 {[%clk 0:02:24]}  Nf6 {[%clk 0:02:06]} 15. c3 {[%clk 0:02:16]}  Nxh5 {[%clk 0:02:01]} 16. Qxh5 {[%clk 0:02:17]}  Bg6 {[%clk 0:02:02]} 17. Qg4 {[%clk 0:02:10]}  Bf5 {[%clk 0:02:02]} 18. Qg3 {[%clk 0:02:10]}  a5 {[%clk 0:01:55]} 19. O-O {[%clk 0:02:04]}  a4 {[%clk 0:01:55]} 20. Bc4 {[%clk 0:02:03]}  b5 {[%clk 0:01:54]} 21. Be2 {[%clk 0:01:57]}  g5 {[%clk 0:01:52]} 22. Qe5 {[%clk 0:01:51]}  f6 {[%clk 0:01:50]} 23. Bh5+ {[%clk 0:01:50]}  Kd7 {[%clk 0:01:47]} 24. Qe2 {[%clk 0:01:48]}  Bd6 {[%clk 0:01:43]} 25. Rfe1 {[%clk 0:01:46]}  Qg8 {[%clk 0:01:30]} 26. c4 {[%clk 0:01:39]}  Rb8 {[%clk 0:01:26]} 27. d5 {[%clk 0:01:28]}  cxd5 {[%clk 0:00:33]} 28. cxd5 {[%clk 0:01:27]}  e5 {[%clk 0:00:34]} 29. Bg4 {[%clk 0:01:27]}  Bxg4 {[%clk 0:00:33]} 30. Qxg4+ {[%clk 0:01:28]}  Ke7 {[%clk 0:00:34]} 31. Bb4 {[%clk 0:01:24]}  Qc8 {[%clk 0:00:27]} 32. Qe4 {[%clk 0:01:16]}  Bxb4 {[%clk 0:00:11]} 33. Qxb4+ {[%clk 0:01:15]}  Kf7 {[%clk 0:00:12]} 34. Rac1 {[%clk 0:01:14]}  Qd7 {[%clk 0:00:12]} 35. Rc6 {[%clk 0:01:10]}  Qxd5 {[%clk 0:00:12]} 36. Rc7+ {[%clk 0:01:10]}  Kg6 {[%clk 0:00:12]} 37. Qe7 {[%clk 0:01:02]}  Rbg8 {[%clk 0:00:10]} 38. Rd7 {[%clk 0:00:59]}  Qxa2 {[%clk 0:00:10]} 39. Rd6 {[%clk 0:00:56]}  Qf7 {[%clk 0:00:08]} 40. Qxe5 {[%clk 0:00:52]}  Re8 {[%clk 0:00:07]} 41. Qc3 {[%clk 0:00:39]}  Rxe1+ {[%clk 0:00:08]} 42. Qxe1 {[%clk 0:00:40]}  Re8 {[%clk 0:00:08]} 43. Qd1 {[%clk 0:00:37]}  Re5 {[%clk 0:00:05]} 44. Qd3+ {[%clk 0:00:29]}  Kg7 {[%clk 0:00:03]} 45. h5 {[%clk 0:00:27]}  Re7 {[%clk 0:00:02]} 46. g4 {[%clk 0:00:25]} 1-0


[Site "https://www.chess.com"]

[Event "Titled Tuesday Blitz June 14 Early 2022"]
[White "Deac, Bogdan-Daniel"]
[Black "Samunenkov, Ihor"]
[WhiteFideId "1226380"]
[BlackFideId "14187086"]
[WhiteElo "2648"]
[BlackElo "2409"]
[Result "1-0"]
[Round "07"]
[TimeControl "180+1"]
[Date "2022.06.14"]
[WhiteClock "0:00:05"]
[BlackClock "0:00:04"]

1. Nf3 {[%clk 0:03:00]}  Nf6 {[%clk 0:02:57]} 2. g3 {[%clk 0:02:55]}  c5 {[%clk 0:02:57]} 3. Bg2 {[%clk 0:02:53]}  Nc6 {[%clk 0:02:57]} 4. O-O {[%clk 0:02:50]}  e5 {[%clk 0:02:56]} 5. c4 {[%clk 0:02:50]}  d5 {[%clk 0:02:56]} 6. cxd5 {[%clk 0:02:49]}  Nxd5 {[%clk 0:02:57]} 7. Nc3 {[%clk 0:02:48]}  Be6 {[%clk 0:02:57]} 8. b3 {[%clk 0:02:42]}  Be7 {[%clk 0:02:45]} 9. Bb2 {[%clk 0:02:39]}  f6 {[%clk 0:02:45]} 10. e3 {[%clk 0:02:39]}  O-O {[%clk 0:02:26]} 11. a3 {[%clk 0:02:30]}  Rc8 {[%clk 0:02:18]} 12. Rc1 {[%clk 0:02:26]}  Qd7 {[%clk 0:02:09]} 13. Ne4 {[%clk 0:02:11]}  b6 {[%clk 0:02:02]} 14. d4 {[%clk 0:02:10]}  cxd4 {[%clk 0:01:59]} 15. exd4 {[%clk 0:02:10]}  f5 {[%clk 0:01:59]} 16. Neg5 {[%clk 0:02:07]}  e4 {[%clk 0:01:57]} 17. Nxe6 {[%clk 0:01:54]}  Qxe6 {[%clk 0:01:57]} 18. Ne5 {[%clk 0:01:53]}  Bf6 {[%clk 0:01:52]} 19. Nc4 {[%clk 0:01:26]}  Rfd8 {[%clk 0:01:49]} 20. Rc2 {[%clk 0:01:25]}  Rd7 {[%clk 0:01:22]} 21. Re1 {[%clk 0:01:24]}  Nde7 {[%clk 0:01:08]} 22. Rd2 {[%clk 0:01:08]}  Rcd8 {[%clk 0:01:08]} 23. f3 {[%clk 0:01:08]}  b5 {[%clk 0:00:59]} 24. fxe4 {[%clk 0:00:42]}  bxc4 {[%clk 0:00:58]} 25. d5 {[%clk 0:00:42]}  Qd6 {[%clk 0:00:42]} 26. Bxf6 {[%clk 0:00:40]}  Qxf6 {[%clk 0:00:40]} 27. bxc4 {[%clk 0:00:39]}  Qd6 {[%clk 0:00:25]} 28. exf5 {[%clk 0:00:27]}  Qc5+ {[%clk 0:00:24]} 29. Kh1 {[%clk 0:00:27]}  Qxc4 {[%clk 0:00:18]} 30. Re4 {[%clk 0:00:23]}  Qc5 {[%clk 0:00:11]} 31. Re6 {[%clk 0:00:18]}  Nxd5 {[%clk 0:00:09]} 32. Qe1 {[%clk 0:00:14]}  Nde7 {[%clk 0:00:07]} 33. Rxd7 {[%clk 0:00:07]}  Rxd7 {[%clk 0:00:08]} 34. Bxc6 {[%clk 0:00:08]}  Rc7 {[%clk 0:00:04]} 35. Bf3 {[%clk 0:00:08]}  Qxf5 {[%clk 0:00:05]} 36. Re3 {[%clk 0:00:04]}  h6 {[%clk 0:00:02]} 37. Kg2 {[%clk 0:00:04]}  Qf6 {[%clk 0:00:02]} 38. Re2 {[%clk 0:00:05]}  Qd6 {[%clk 0:00:03]} 39. Re6 {[%clk 0:00:04]}  Qd7 {[%clk 0:00:02]} 40. Re2 {[%clk 0:00:04]}  Qd6 {[%clk 0:00:02]} 41. Qa5 {[%clk 0:00:05]}  Rd7 {[%clk 0:00:02]} 42. a4 {[%clk 0:00:05]}  Qb6 {[%clk 0:00:02]} 43. Qe5 {[%clk 0:00:05]}  Qd6 {[%clk 0:00:03]} 44. Qe4 {[%clk 0:00:05]}  Qf6 {[%clk 0:00:03]} 45. Qc4+ {[%clk 0:00:05]}  Kh8 {[%clk 0:00:02]} 46. Qe4 {[%clk 0:00:05]}  Kg8 {[%clk 0:00:02]} 47. Qa8+ {[%clk 0:00:06]}  Kh7 {[%clk 0:00:03]} 48. Be4+ {[%clk 0:00:06]}  g6 {[%clk 0:00:03]} 49. Rf2 {[%clk 0:00:07]}  Qg7 {[%clk 0:00:03]} 50. Qe8 {[%clk 0:00:07]}  Rc7 {[%clk 0:00:03]} 51. Rf7 {[%clk 0:00:06]}  Nf5 {[%clk 0:00:02]} 52. Rxg7+ {[%clk 0:00:06]}  Nxg7 {[%clk 0:00:03]} 53. Qe5 {[%clk 0:00:06]}  Kg8 {[%clk 0:00:04]} 54. Qxc7 {[%clk 0:00:05]} 1-0


[Site "https://www.chess.com"]

[Event "Titled Tuesday Blitz June 14 Early 2022"]
[White "Gaehwiler, Gabriel"]
[Black "Sirosh, Ilja"]
[WhiteFideId "1314530"]
[BlackFideId "4500458"]
[WhiteElo "2383"]
[BlackElo "2241"]
[Result "1/2-1/2"]
[Round "07"]
[TimeControl "180+1"]
[Date "2022.06.14"]
[WhiteClock "0:02:20"]
[BlackClock "0:01:28"]

1. d4 {[%clk 0:03:00]}  d5 {[%clk 0:02:58]} 2. c4 {[%clk 0:03:01]}  e6 {[%clk 0:02:57]} 3. Nf3 {[%clk 0:03:01]}  Nf6 {[%clk 0:02:57]} 4. g3 {[%clk 0:03:01]}  dxc4 {[%clk 0:02:57]} 5. Bg2 {[%clk 0:03:01]}  Nbd7 {[%clk 0:02:58]} 6. Qc2 {[%clk 0:02:58]}  b5 {[%clk 0:02:31]} 7. a4 {[%clk 0:02:57]}  c6 {[%clk 0:02:28]} 8. Nc3 {[%clk 0:02:57]}  b4 {[%clk 0:02:21]} 9. Nb1 {[%clk 0:02:56]}  Ba6 {[%clk 0:02:08]} 10. O-O {[%clk 0:02:56]}  Rc8 {[%clk 0:02:05]} 11. Rd1 {[%clk 0:02:56]}  c5 {[%clk 0:02:04]} 12. Bg5 {[%clk 0:02:51]}  cxd4 {[%clk 0:01:56]} 13. Nxd4 {[%clk 0:02:52]}  Bc5 {[%clk 0:01:53]} 14. Nb5 {[%clk 0:02:40]}  Qb6 {[%clk 0:01:49]} 15. e3 {[%clk 0:02:32]}  O-O {[%clk 0:01:46]} 16. Nd2 {[%clk 0:02:30]}  Bxb5 {[%clk 0:01:42]} 17. axb5 {[%clk 0:02:30]}  Qxb5 {[%clk 0:01:42]} 18. Qxc4 {[%clk 0:02:30]}  Qxc4 {[%clk 0:01:31]} 19. Nxc4 {[%clk 0:02:31]}  Nb6 {[%clk 0:01:31]} 20. Na5 {[%clk 0:02:27]}  h6 {[%clk 0:01:27]} 21. Bxf6 {[%clk 0:02:20]}  gxf6 {[%clk 0:01:28]} 1/2-1/2


[Site "https://www.chess.com"]

[Event "Titled Tuesday Blitz June 14 Early 2022"]
[White "Grischuk, Alexander"]
[Black "Dubov, Daniil"]
[WhiteFideId "4126025"]
[BlackFideId "24126055"]
[WhiteElo "2762"]
[BlackElo "2791"]
[Result "1-0"]
[Round "07"]
[TimeControl "180+1"]
[Date "2022.06.14"]
[WhiteClock "0:00:04"]
[BlackClock "0:00:02"]

1. d4 {[%clk 0:03:00]}  Nf6 {[%clk 0:02:59]} 2. c4 {[%clk 0:03:00]}  c5 {[%clk 0:02:59]} 3. d5 {[%clk 0:03:00]}  b5 {[%clk 0:02:59]} 4. Qc2 {[%clk 0:02:55]}  b4 {[%clk 0:02:57]} 5. e4 {[%clk 0:02:55]}  d6 {[%clk 0:02:58]} 6. Nf3 {[%clk 0:02:52]}  g6 {[%clk 0:02:58]} 7. Bd3 {[%clk 0:02:46]}  Bg7 {[%clk 0:02:58]} 8. O-O {[%clk 0:02:47]}  O-O {[%clk 0:02:58]} 9. h3 {[%clk 0:02:46]}  e5 {[%clk 0:02:54]} 10. Bg5 {[%clk 0:02:45]}  h6 {[%clk 0:02:52]} 11. Be3 {[%clk 0:02:44]}  Nh5 {[%clk 0:02:48]} 12. Qd1 {[%clk 0:02:36]}  a5 {[%clk 0:02:36]} 13. Bc2 {[%clk 0:02:24]}  Na6 {[%clk 0:02:03]} 14. Nbd2 {[%clk 0:02:17]}  Ra7 {[%clk 0:02:01]} 15. Re1 {[%clk 0:02:11]}  Bd7 {[%clk 0:01:47]} 16. Nf1 {[%clk 0:02:09]}  Qe8 {[%clk 0:01:46]} 17. Ng3 {[%clk 0:01:59]}  Nf6 {[%clk 0:01:31]} 18. Qd2 {[%clk 0:01:56]}  Kh7 {[%clk 0:01:31]} 19. Nh2 {[%clk 0:01:54]}  Bc8 {[%clk 0:01:08]} 20. Rab1 {[%clk 0:01:34]}  Re7 {[%clk 0:01:03]} 21. f4 {[%clk 0:01:26]}  exf4 {[%clk 0:00:48]} 22. Bxf4 {[%clk 0:01:27]}  Re5 {[%clk 0:00:47]} 23. Nf3 {[%clk 0:01:24]}  Nd7 {[%clk 0:00:46]} 24. Ba4 {[%clk 0:01:22]}  Nab8 {[%clk 0:00:35]} 25. Nh1 {[%clk 0:01:12]}  Qe7 {[%clk 0:00:16]} 26. Bxd7 {[%clk 0:00:26]}  Nxd7 {[%clk 0:00:15]} 27. Nxe5 {[%clk 0:00:25]}  Nxe5 {[%clk 0:00:16]} 28. b3 {[%clk 0:00:25]}  Bd7 {[%clk 0:00:11]} 29. Nf2 {[%clk 0:00:25]}  a4 {[%clk 0:00:09]} 30. Nd3 {[%clk 0:00:23]}  Nxd3 {[%clk 0:00:09]} 31. Qxd3 {[%clk 0:00:24]}  Bc3 {[%clk 0:00:09]} 32. Qg3 {[%clk 0:00:22]}  Bd4+ {[%clk 0:00:02]} 33. Kh1 {[%clk 0:00:22]}  Be5 {[%clk 0:00:03]} 34. Bxe5 {[%clk 0:00:21]}  dxe5 {[%clk 0:00:04]} 35. Rf1 {[%clk 0:00:20]}  Qd6 {[%clk 0:00:04]} 36. Rf3 {[%clk 0:00:20]}  Kg7 {[%clk 0:00:05]} 37. Rbf1 {[%clk 0:00:20]}  f6 {[%clk 0:00:05]} 38. Qf2 {[%clk 0:00:19]}  a3 {[%clk 0:00:05]} 39. Qg3 {[%clk 0:00:17]}  g5 {[%clk 0:00:06]} 40. h4 {[%clk 0:00:11]}  Be8 {[%clk 0:00:06]} 41. Qg4 {[%clk 0:00:07]}  Bd7 {[%clk 0:00:05]} 42. Qg3 {[%clk 0:00:07]}  Be8 {[%clk 0:00:06]} 43. hxg5 {[%clk 0:00:07]}  hxg5 {[%clk 0:00:06]} 44. Kg1 {[%clk 0:00:07]}  Bh5 {[%clk 0:00:06]} 45. R3f2 {[%clk 0:00:07]}  Bg6 {[%clk 0:00:06]} 46. Qg4 {[%clk 0:00:07]}  Rf7 {[%clk 0:00:06]} 47. Rf3 {[%clk 0:00:08]}  Rf8 {[%clk 0:00:06]} 48. Rh3 {[%clk 0:00:07]}  Rf7 {[%clk 0:00:05]} 49. Rf2 {[%clk 0:00:07]}  Rf8 {[%clk 0:00:05]} 50. g3 {[%clk 0:00:07]}  Rf7 {[%clk 0:00:06]} 51. Rfh2 {[%clk 0:00:07]}  Kf8 {[%clk 0:00:05]} 52. Rh8+ {[%clk 0:00:06]}  Ke7 {[%clk 0:00:05]} 53. Qc8 {[%clk 0:00:05]}  Bxe4 {[%clk 0:00:02]} 54. Qe8# {[%clk 0:00:04]} 1-0


[Site "https://www.chess.com"]

[Event "Titled Tuesday Blitz June 14 Early 2022"]
[White "Gunina, Valentina"]
[Black "Bilych, Olexiy"]
[WhiteFideId "4167570"]
[BlackFideId "14156504"]
[WhiteElo "2386"]
[BlackElo "2189"]
[Result "1-0"]
[Round "07"]
[TimeControl "180+1"]
[Date "2022.06.14"]
[WhiteClock "0:01:12"]
[BlackClock "0:00:44"]

1. d4 {[%clk 0:03:00]}  Nf6 {[%clk 0:02:59]} 2. c4 {[%clk 0:03:01]}  e6 {[%clk 0:03:00]} 3. Nf3 {[%clk 0:03:01]}  d5 {[%clk 0:02:59]} 4. Nc3 {[%clk 0:03:01]}  Bb4 {[%clk 0:03:00]} 5. Bg5 {[%clk 0:02:58]}  dxc4 {[%clk 0:02:59]} 6. e4 {[%clk 0:02:57]}  c5 {[%clk 0:02:58]} 7. Bxc4 {[%clk 0:02:56]}  cxd4 {[%clk 0:02:57]} 8. Nxd4 {[%clk 0:02:56]}  Qa5 {[%clk 0:02:57]} 9. Bd2 {[%clk 0:02:56]}  O-O {[%clk 0:02:51]} 10. a3 {[%clk 0:02:38]}  Qc5 {[%clk 0:02:45]} 11. Qe2 {[%clk 0:02:05]}  Qxd4 {[%clk 0:01:44]} 12. axb4 {[%clk 0:02:04]}  Nc6 {[%clk 0:01:42]} 13. O-O {[%clk 0:02:04]}  Ne5 {[%clk 0:01:36]} 14. b3 {[%clk 0:02:02]}  b6 {[%clk 0:01:30]} 15. Rad1 {[%clk 0:02:00]}  Bb7 {[%clk 0:01:26]} 16. Be1 {[%clk 0:01:59]}  Qxd1 {[%clk 0:01:18]} 17. Qxd1 {[%clk 0:01:57]}  Rad8 {[%clk 0:01:19]} 18. Qe2 {[%clk 0:01:58]}  Nc6 {[%clk 0:01:18]} 19. e5 {[%clk 0:01:55]}  Nd4 {[%clk 0:01:18]} 20. Qe3 {[%clk 0:01:53]}  Ng4 {[%clk 0:01:14]} 21. Qg3 {[%clk 0:01:50]}  Nh6 {[%clk 0:01:12]} 22. f4 {[%clk 0:01:44]}  Nhf5 {[%clk 0:01:13]} 23. Qf2 {[%clk 0:01:44]}  h5 {[%clk 0:01:11]} 24. Ne2 {[%clk 0:01:35]}  Nc2 {[%clk 0:01:01]} 25. Ng3 {[%clk 0:01:32]}  Nfe3 {[%clk 0:01:01]} 26. Nxh5 {[%clk 0:01:29]}  Nxf1 {[%clk 0:00:55]} 27. Kxf1 {[%clk 0:01:13]}  Nxe1 {[%clk 0:00:50]} 28. Kxe1 {[%clk 0:01:13]}  Rd4 {[%clk 0:00:44]} 29. Qxd4 {[%clk 0:01:12]} 1-0


[Site "https://www.chess.com"]

[Event "Titled Tuesday Blitz June 14 Early 2022"]
[White "Hakobyan, Aram"]
[Black "Daneshvar, Bardiya"]
[WhiteFideId "13306677"]
[BlackFideId "12576468"]
[WhiteElo "2557"]
[BlackElo "2303"]
[Result "1-0"]
[Round "07"]
[TimeControl "180+1"]
[Date "2022.06.14"]
[WhiteClock "0:00:10"]
[BlackClock "0:00:06"]

1. d4 {[%clk 0:02:51]}  Nf6 {[%clk 0:02:59]} 2. c4 {[%clk 0:02:51]}  e6 {[%clk 0:02:59]} 3. a3 {[%clk 0:02:51]}  c5 {[%clk 0:02:57]} 4. d5 {[%clk 0:02:51]}  exd5 {[%clk 0:02:57]} 5. cxd5 {[%clk 0:02:51]}  d6 {[%clk 0:02:56]} 6. Nc3 {[%clk 0:02:52]}  g6 {[%clk 0:02:56]} 7. e4 {[%clk 0:02:52]}  Bg7 {[%clk 0:02:57]} 8. Nf3 {[%clk 0:02:53]}  O-O {[%clk 0:02:57]} 9. Be2 {[%clk 0:02:52]}  b5 {[%clk 0:02:38]} 10. e5 {[%clk 0:02:35]}  dxe5 {[%clk 0:02:34]} 11. Bxb5 {[%clk 0:02:36]}  e4 {[%clk 0:02:28]} 12. Ne5 {[%clk 0:02:15]}  Nxd5 {[%clk 0:02:09]} 13. Qxd5 {[%clk 0:02:16]}  Qxd5 {[%clk 0:02:09]} 14. Nxd5 {[%clk 0:02:17]}  Bxe5 {[%clk 0:02:09]} 15. Bh6 {[%clk 0:02:17]}  Rd8 {[%clk 0:01:40]} 16. O-O-O {[%clk 0:02:17]}  Bd7 {[%clk 0:01:20]} 17. Rhe1 {[%clk 0:01:08]}  Bd4 {[%clk 0:00:52]} 18. Bg5 {[%clk 0:00:42]}  Re8 {[%clk 0:00:33]} 19. Rxd4 {[%clk 0:00:37]}  cxd4 {[%clk 0:00:19]} 20. Nf6+ {[%clk 0:00:36]}  Kg7 {[%clk 0:00:17]} 21. Nxe8+ {[%clk 0:00:34]}  Bxe8 {[%clk 0:00:17]} 22. Bxe8 {[%clk 0:00:34]}  Na6 {[%clk 0:00:17]} 23. Rxe4 {[%clk 0:00:24]}  Nc5 {[%clk 0:00:16]} 24. Re7 {[%clk 0:00:25]}  Ne6 {[%clk 0:00:10]} 25. Bh4 {[%clk 0:00:09]}  g5 {[%clk 0:00:09]} 26. Rxf7+ {[%clk 0:00:10]}  Kg8 {[%clk 0:00:08]} 27. Re7 {[%clk 0:00:11]}  Rc8+ {[%clk 0:00:06]} 28. Kd1 {[%clk 0:00:10]} 1-0


[Site "https://www.chess.com"]